bitfinex/quotes_BTCUSD_20250313
["timestamp","ask_amount","ask_price","bid_price","bid_amount"]
[1741893452518,0.01938379,80844.0,80842.0,0.247396]
[1741893452737,0.43769832,80845.0,80844.0,0.259759]
[1741893453198,0.43769832,80845.0,80844.0,0.389059]
[1741893453199,0.4125,80845.0,80844.0,0.389059]
[1741893453424,0.4105,80845.0,80844.0,0.389059]
[1741893453874,0.4115,80845.0,80844.0,0.389059]
[1741893454109,0.4095,80845.0,80844.0,0.389059]
[1741893454336,0.4125,80845.0,80844.0,0.389059]
[1741893454820,0.002,80845.0,80844.0,0.80875999]
[1741893455059,1e-06,80845.0,80844.0,0.81175999]
[1741893455791,1e-06,80845.0,80844.0,0.80975999]
[1741893456029,0.01938044,80845.0,80844.0,0.80975999]
[1741893456967,0.1037259,80878.0,80875.0,0.259659]
[1741893457425,0.1037259,80878.0,80855.0,0.012367]
[1741893457426,0.012365,80870.0,80855.0,0.012367]
[1741893457706,0.247308,80871.0,80863.0,0.259696]
[1741893457951,0.247318,80868.0,80863.0,0.012366]
[1741893458189,0.247318,80868.0,80862.0,0.247334]
[1741893458190,0.247321,80867.0,80862.0,0.247334]
[1741893458415,0.25034119,80867.0,80859.0,0.247341]
[1741893459272,0.247322,80866.0,80859.0,0.259708]
[1741893459408,0.00301276,80865.0,80859.0,0.259708]
[1741893459608,0.00301276,80865.0,80859.0,0.012367]
[1741893459815,0.247327,80865.0,80859.0,0.012367]
[1741893460010,0.00301276,80864.0,80859.0,0.012367]
[1741893460582,0.02538986,80862.0,80858.0,0.259713]
[1741893461154,0.00301276,80861.0,80860.0,0.259707]
[1741893462653,0.00301276,80861.0,80860.0,0.260707]
[1741893463854,0.00335096,80861.0,80860.0,0.001]
[1741893464844,0.012367,80855.0,80844.0,0.0491]
[1741893465051,0.247368,80851.0,80845.0,0.012369]
[1741893465253,0.35277204,80860.0,80845.0,0.012369]
[1741893465254,0.247357,80855.0,80849.0,0.247372]
[1741893465555,0.00283017,80854.0,80849.0,0.247372]
[1741893466299,0.01938129,80853.0,80849.0,0.247372]
[1741893466587,0.01938129,80853.0,80852.0,0.259733]
[1741893466769,0.01277981,80868.0,80856.0,0.012367]
[1741893467082,0.012367,80858.0,80843.0,0.247391]
[1741893467284,0.02447723,80859.0,80841.0,0.012369]
[1741893467487,0.02447723,80859.0,80836.0,0.0773]
[1741893467488,0.012369,80846.0,80836.0,0.0773]
[1741893467618,0.012369,80846.0,80836.0,0.08967]
[1741893467823,1.248609,80846.0,80832.0,0.0001691]
[1741893468039,1.27114723,80846.0,80832.0,0.0001691]
[1741893468231,0.012371,80833.0,80832.0,0.0001691]
[1741893468436,0.259794,80833.0,80832.0,0.0001691]
[1741893468781,0.24742,80834.0,80832.0,0.0001691]
[1741893468986,0.247408,80838.0,80832.0,0.0001691]
[1741893469193,0.24742,80834.0,80832.0,0.0001691]
[1741893469397,0.012371,80833.0,80832.0,0.0002355]
[1741893470008,0.01237,80835.0,80832.0,0.0002355]
[1741893470143,0.01938715,80838.0,80836.0,0.259781]
[1741893470355,0.15072,80837.0,80836.0,0.01237]
[1741893470557,0.15072,80837.0,80835.0,0.01237]
[1741893470805,0.17590541,80837.0,80832.0,0.0002355]
[1741893471010,0.17590541,80837.0,80836.0,0.01237]
[1741893472162,0.17590541,80837.0,80833.0,0.259791]
[1741893472163,0.17590541,80837.0,80833.0,0.247423]
[1741893472364,0.17590541,80837.0,80834.0,0.012371]
[1741893472813,0.17590541,80837.0,80836.0,0.247414]
[1741893473011,0.02518541,80837.0,80835.0,0.01237]
[1741893473375,0.02518541,80837.0,80836.0,0.01237]
[1741893474855,0.27359841,80837.0,80832.0,0.0002355]
[1741893475096,0.02518541,80837.0,80832.0,0.2600305]
[1741893475469,0.02518541,80837.0,80832.0,0.0002355]
[1741893475470,0.247423,80833.0,80832.0,0.0002355]
[1741893475692,0.259794,80833.0,80832.0,0.0002355]
[1741893476027,0.02518541,80837.0,80832.0,0.0002355]
[1741893476028,0.01237,80836.0,80832.0,0.0002355]
[1741893476250,0.012371,80834.0,80832.0,0.0002355]
[1741893476501,0.259793,80834.0,80832.0,0.0002355]
[1741893476713,0.012371,80834.0,80832.0,0.0002355]
[1741893476929,0.02518541,80837.0,80832.0,0.2600295]
[1741893477104,0.02518541,80837.0,80834.0,0.012371]
[1741893477350,0.03755541,80837.0,80832.0,0.0002355]
[1741893477563,0.012371,80834.0,80832.0,0.0002355]
[1741893478096,0.259794,80834.0,80832.0,0.0002355]
[1741893478307,0.012371,80833.0,80832.0,0.0002355]
[1741893478508,0.259794,80834.0,80832.0,0.0002355]
[1741893478725,0.012371,80834.0,80832.0,0.0002355]
[1741893478932,0.259787,80835.0,80832.0,0.0002355]
[1741893479295,0.259794,80833.0,80832.0,0.0002355]
[1741893480365,0.02518541,80837.0,80835.0,0.01237]
[1741893480569,0.02518541,80837.0,80835.0,0.259784]
[1741893480781,0.02518541,80837.0,80832.0,0.0002355]
[1741893480782,0.247416,80836.0,80832.0,0.0002355]
[1741893480980,0.03755541,80837.0,80832.0,0.2426615]
[1741893480981,0.02518541,80837.0,80832.0,0.2426615]
[1741893481179,0.02518541,80837.0,80834.0,0.012371]
[1741893481382,0.012371,80833.0,80825.0,0.247617]
[1741893481589,0.012372,80827.0,80825.0,0.000169]
[1741893481811,0.012372,80826.0,80825.0,0.000169]
[1741893482269,0.03175982,80826.0,80825.0,0.000169]
[1741893482885,0.247436,80829.0,80825.0,0.000169]
[1741893483100,0.012371,80830.0,80826.0,0.247445]
[1741893483328,1.045523,80831.0,80826.0,0.259817]
[1741893483534,0.78572,80831.0,80825.0,0.012541]
[1741893483733,0.78572,80831.0,80826.0,0.012372]
[1741893483939,0.78572,80831.0,80826.0,0.259817]
[1741893484150,0.247443,80827.0,80825.0,0.000169]
[1741893484352,0.78572,80831.0,80830.0,0.012371]
[1741893484998,0.78572,80831.0,80830.0,0.094971]
[1741893485225,0.78572,80831.0,80830.0,0.093971]
[1741893486029,0.78772,80831.0,80830.0,0.093971]
[1741893486241,0.78572,80831.0,80830.0,0.093971]
[1741893486640,0.62256315,80831.0,80830.0,0.093971]
[1741893487078,0.02529825,80837.0,80831.0,0.247429]
[1741893487079,0.03766825,80837.0,80831.0,0.247429]
[1741893487270,0.01938738,80831.0,80830.0,0.012371]
[1741893487674,0.01938738,80831.0,80830.0,0.001]
[1741893488094,0.01938738,80831.0,80829.0,0.012371]
[1741893488293,0.01938738,80831.0,80829.0,0.259804]
[1741893488513,0.01938738,80831.0,80830.0,0.012371]
[1741893489078,0.01938738,80831.0,80830.0,0.058171]
[1741893490431,0.01938738,80831.0,80830.0,0.059171]
[1741893491733,0.27918738,80831.0,80830.0,0.001]
[1741893491910,0.27918738,80831.0,80830.0,0.002]
[1741893492118,0.57918738,80831.0,80830.0,0.001]
[1741893492362,0.259817,80826.0,80816.0,0.012373]
[1741893492745,0.247441,80828.0,80820.0,0.012373]
[1741893492961,0.559805,80830.0,80823.0,0.247451]
[1741893493221,0.01938738,80831.0,80829.0,0.012371]
[1741893493393,0.01938738,80831.0,80826.0,0.012372]
[1741893493738,0.15072,80832.0,80828.0,0.247436]
[1741893493914,0.15072,80832.0,80827.0,0.012372]
[1741893494255,0.001,80830.0,80827.0,0.012372]
[1741893494462,0.15072,80832.0,80827.0,0.012372]
[1741893494676,0.15072,80832.0,80827.0,0.259811]
[1741893494885,1.19526,80838.0,80831.0,0.012371]
[1741893495096,0.28541945,80837.0,80831.0,0.012371]
[1741893495294,0.02563645,80837.0,80835.0,0.01237]
[1741893495632,0.02563645,80837.0,80836.0,0.259784]
[1741893495633,0.00045104,80837.0,80836.0,0.259784]
[1741893495811,0.00045104,80837.0,80836.0,0.39290622]
[1741893496013,0.00045104,80837.0,80836.0,0.45868499]
[1741893496646,0.00145104,80837.0,80836.0,0.47176659]
[1741893497457,0.00145104,80837.0,80836.0,0.45868499]
[1741893497816,0.00045104,80837.0,80836.0,0.45868499]
[1741893498065,0.01983365,80837.0,80836.0,0.45868499]
[1741893498266,6.5e-07,80837.0,80836.0,0.77422584]
[1741893498467,0.7858,80863.0,80853.0,0.25973]
[1741893498673,0.7858,80863.0,80853.0,0.34015471]
[1741893499136,0.03830337,80858.0,80853.0,0.33915471]
[1741893499285,0.02523895,80858.0,80853.0,0.33915471]
[1741893499899,0.02523895,80858.0,80853.0,0.34015471]
[1741893501315,0.0022582,80854.0,80853.0,0.34015471]
[1741893501894,0.02163827,80854.0,80853.0,0.34015471]
[1741893503298,0.02163827,80854.0,80853.0,0.38655471]
[1741893503529,0.0022582,80854.0,80853.0,0.38655471]
[1741893503979,0.0022582,80854.0,80853.0,0.34015471]
[1741893504425,0.0022582,80854.0,80853.0,0.08142471]
[1741893504679,0.0022582,80854.0,80853.0,0.00112471]
[1741893504888,0.01237,80836.0,80831.0,0.0464691]
[1741893505092,0.20220413,80844.0,80838.0,0.01237]
[1741893505307,0.247398,80842.0,80833.0,0.247421]
[1741893505522,0.247399,80841.0,80833.0,0.247421]
[1741893505733,0.21457313,80843.0,80836.0,0.01237]
[1741893505908,0.259759,80844.0,80838.0,0.259775]
[1741893506110,0.012369,80843.0,80838.0,0.01237]
[1741893506448,0.02469248,80839.0,80838.0,0.259775]
[1741893506655,0.02469248,80839.0,80837.0,0.01237]
[1741893506857,0.01237,80836.0,80828.0,0.340909]
[1741893507069,0.00415784,80838.0,80834.0,0.259789]
[1741893507287,0.02469248,80839.0,80835.0,0.01237]
[1741893507408,0.00415784,80837.0,80836.0,0.259782]
[1741893507626,0.259778,80838.0,80833.0,0.012371]
[1741893507890,0.247426,80833.0,80831.0,0.0001691]
[1741893508055,0.247426,80833.0,80812.0,0.000169]
[1741893508056,1.098011,80832.0,80812.0,0.081369]
[1741893508275,0.559817,80826.0,80812.0,0.000169]
[1741893508485,0.012374,80813.0,80812.0,0.000169]
[1741893508803,0.00408786,80813.0,80812.0,0.000169]
[1741893509227,0.037211,80815.0,80814.0,0.247481]
[1741893509417,0.037211,80815.0,80813.0,0.012374]
[1741893509649,0.037211,80815.0,80812.0,0.000169]
[1741893510088,0.05660152,80815.0,80812.0,0.012543]
[1741893510294,0.05660152,80815.0,80812.0,0.260028]
[1741893510531,0.05660152,80815.0,80814.0,0.259855]
[1741893511377,0.05660152,80815.0,80812.0,0.260028]
[1741893511786,0.08179526,80815.0,80812.0,0.261028]
[1741893512017,0.08179526,80815.0,80814.0,0.259855]
[1741893512162,0.08179526,80815.0,80812.0,0.260028]
[1741893512367,0.08179526,80815.0,80814.0,0.001]
[1741893513353,0.08179526,80815.0,80799.0,0.247526]
[1741893513354,0.012375,80805.0,80804.0,8e-05]
[1741893514557,0.012375,80805.0,80804.0,0.00019284]
[1741893515406,0.001,80805.0,80804.0,0.01256784]
[1741893517464,0.001,80805.0,80804.0,0.00019284]
[1741893517651,0.01410989,80805.0,80804.0,0.01256784]
[1741893518659,0.01410989,80805.0,80804.0,0.00019284]
[1741893518871,0.01410989,80805.0,80804.0,0.01256784]
[1741893519650,0.02648489,80805.0,80804.0,0.00019284]
[1741893519847,0.02648489,80805.0,80782.0,0.012378]
[1741893519848,0.012378,80787.0,80782.0,0.012378]
[1741893520110,0.3,80798.0,80792.0,0.00012474]
[1741893520678,0.3,80798.0,80793.0,0.247546]
[1741893520886,0.3,80798.0,80792.0,0.00012474]
[1741893521082,0.3,80800.0,80796.0,0.012376]
[1741893521513,0.3,80800.0,80799.0,0.011376]
[1741893521712,0.45072,80801.0,80800.0,0.2599]
[1741893521942,0.17542888,80801.0,80800.0,0.2599]
[1741893522134,0.17542888,80801.0,80799.0,0.011376]
[1741893522311,0.17542888,80801.0,80798.0,0.24753]
[1741893522891,0.17542888,80801.0,80797.0,0.012376]
[1741893523119,0.17542888,80801.0,80799.0,0.259901]
[1741893523327,0.17542888,80801.0,80797.0,0.012376]
[1741893523328,0.17542888,80801.0,80793.0,0.247545]
[1741893523709,0.17542888,80801.0,80792.0,0.00012474]
[1741893523710,0.012376,80800.0,80792.0,0.00012474]
[1741893523923,0.012377,80793.0,80792.0,0.00012474]
[1741893524068,0.012377,80795.0,80792.0,0.00012474]
[1741893524280,0.247542,80795.0,80792.0,0.00012474]
[1741893524633,0.3,80797.0,80792.0,0.00012474]
[1741893524761,0.3,80798.0,80795.0,0.247538]
[1741893524988,0.3,80798.0,80797.0,0.012376]
[1741893525172,0.3,80798.0,80793.0,0.012377]
[1741893525373,0.3,80798.0,80794.0,0.012377]
[1741893525788,0.02470888,80801.0,80796.0,0.247537]
[1741893525991,0.02470888,80801.0,80800.0,0.012376]
[1741893526563,0.06192688,80801.0,80799.0,0.259902]
[1741893526765,0.06192688,80801.0,80798.0,0.0802]
[1741893526978,0.06192688,80801.0,80798.0,0.247528]
[1741893527178,0.12965391,80803.0,80799.0,0.012376]
[1741893527333,0.01292086,80805.0,80801.0,0.259897]
[1741893527675,0.037218,80805.0,80801.0,0.259897]
[1741893527796,0.54488,80829.0,80801.0,0.259897]
[1741893527797,0.4095,80810.0,80807.0,0.012375]
[1741893527999,0.4095,80810.0,80808.0,0.259875]
[1741893528217,0.02513515,80809.0,80805.0,0.247509]
[1741893528422,0.001,80805.0,80803.0,0.259889]
[1741893528627,0.001,80805.0,80800.0,0.2599]
[1741893528831,0.259889,80804.0,80800.0,0.247524]
[1741893529150,0.247514,80804.0,80800.0,0.247524]
[1741893529346,0.247514,80804.0,80799.0,0.012376]
[1741893529708,0.259889,80804.0,80799.0,0.012376]
[1741893529912,0.259889,80804.0,80797.0,0.0459]
[1741893530130,0.247505,80807.0,80797.0,0.0459]
[1741893530131,0.012375,80808.0,80803.0,0.247513]
[1741893530345,0.259877,80808.0,80803.0,0.247513]
[1741893530542,0.02513515,80809.0,80803.0,0.012375]
[1741893530802,0.001,80804.0,80801.0,0.259895]
[1741893531020,0.001,80804.0,80803.0,0.25989]
[1741893531318,0.001,80804.0,80801.0,0.259895]
[1741893531762,0.247507,80806.0,80801.0,0.259895]
[1741893531991,0.001,80804.0,80800.0,0.259898]
[1741893532438,0.247515,80803.0,80799.0,0.012376]
[1741893532689,0.013375,80804.0,80799.0,0.012376]
[1741893532872,0.012375,80802.0,80796.0,0.25991]
[1741893533070,0.2599,80801.0,80793.0,0.012377]
[1741893533552,0.012375,80804.0,80792.0,0.01250174]
[1741893533672,0.01939411,80805.0,80799.0,0.2599]
[1741893533873,0.4622097,80807.0,80801.0,0.247519]
[1741893534074,0.247508,80806.0,80801.0,0.247519]
[1741893534274,0.259883,80806.0,80800.0,0.259898]
[1741893534557,0.247511,80805.0,80800.0,0.259898]
[1741893534736,0.247514,80804.0,80798.0,0.259906]
[1741893535295,0.247514,80804.0,80799.0,0.247525]
[1741893535468,0.012375,80804.0,80796.0,0.012376]
[1741893535643,0.012375,80805.0,80799.0,0.247525]
[1741893535849,0.259887,80805.0,80799.0,0.247525]
[1741893536051,0.259883,80806.0,80801.0,0.259895]
[1741893536459,0.249508,80806.0,80801.0,0.259895]
[1741893536661,0.248508,80806.0,80801.0,0.259895]
[1741893537008,0.001,80805.0,80804.0,0.012375]
[1741893537238,0.02039379,80805.0,80804.0,0.259884]
[1741893537408,0.01939379,80805.0,80804.0,0.259884]
[1741893537975,0.01939379,80805.0,80804.0,0.342084]
[1741893538176,0.01939379,80805.0,80804.0,0.329709]
[1741893538525,0.01939379,80805.0,80804.0,0.0822]
[1741893538867,0.259896,80802.0,80796.0,0.25991]
[1741893539076,0.259896,80802.0,80797.0,0.012376]
[1741893539277,0.012375,80803.0,80797.0,0.259907]
[1741893539902,0.012375,80803.0,80797.0,0.25826712]
[1741893540256,0.01973219,80805.0,80801.0,0.012376]
[1741893540455,0.01973219,80805.0,80802.0,0.247518]
[1741893540684,0.01973219,80805.0,80804.0,0.259887]
[1741893541540,0.02073219,80805.0,80804.0,0.259887]
[1741893541719,0.02073219,80805.0,80804.0,0.307187]
[1741893541919,0.02073219,80805.0,80804.0,0.385787]
[1741893542799,0.01973219,80805.0,80804.0,0.50548799]
[1741893543000,0.0003384,80805.0,80804.0,0.50548799]
[1741893543152,0.0013384,80805.0,80804.0,0.50548799]
[1741893543696,0.0023384,80805.0,80804.0,0.50548799]
[1741893543895,0.0013384,80805.0,80804.0,0.50548799]
[1741893544105,0.0003384,80805.0,80804.0,0.50548799]
[1741893544731,0.0003384,80805.0,80804.0,0.50648799]
[1741893545351,0.0003384,80805.0,80804.0,0.386787]
[1741893546530,0.0003384,80805.0,80804.0,0.50648799]
[1741893547339,0.0197289,80805.0,80804.0,0.50648799]
[1741893548446,0.0197289,80805.0,80804.0,0.80648799]
[1741893549949,0.0197289,80805.0,80804.0,0.80548799]
[1741893550907,0.0207289,80805.0,80804.0,0.80748799]
[1741893551516,0.0207289,80805.0,80804.0,0.80948799]
[1741893551968,0.0207289,80805.0,80804.0,0.80748799]
[1741893552382,0.0217289,80805.0,80804.0,0.96212799]
[1741893552624,9e-07,80805.0,80804.0,0.97666884]
[1741893552839,0.0003382,80825.0,80824.0,0.688523]
[1741893553059,0.0003382,80825.0,80824.0,0.80822399]
[1741893553691,2e-07,80825.0,80824.0,0.82163337]
[1741893553891,2e-07,80825.0,80824.0,0.84117422]
[1741893554015,2e-07,80825.0,80824.0,0.84017422]
[1741893554437,2e-07,80825.0,80824.0,0.84217422]
[1741893554689,2e-07,80825.0,80824.0,0.84417422]
[1741893554882,2e-07,80825.0,80824.0,0.84217422]
[1741893555317,0.0010002,80825.0,80824.0,0.84217422]
[1741893555436,0.0020002,80825.0,80824.0,0.84717422]
[1741893556304,2e-07,80825.0,80824.0,0.84717422]
[1741893556522,2e-07,80825.0,80824.0,0.84517422]
[1741893556756,2e-07,80825.0,80824.0,0.85117422]
[1741893559792,4e-07,80837.0,80836.0,0.70722485]
[1741893559993,4e-07,80837.0,80836.0,0.82692584]
[1741893560938,4e-07,80837.0,80836.0,0.87692584]
[1741893561578,4e-07,80837.0,80836.0,0.88292584]
[1741893561959,0.01938054,80864.0,80836.0,0.88292584]
[1741893561960,0.01938054,80864.0,80853.0,0.25973]
[1741893562110,0.00238289,80854.0,80853.0,0.65439099]
[1741893562551,0.02176108,80854.0,80853.0,0.65439099]
[1741893563477,0.02176108,80854.0,80853.0,0.66751733]
[1741893563674,0.02176108,80854.0,80853.0,0.67151733]
[1741893564957,0.00238289,80854.0,80853.0,0.67151733]
[1741893565374,0.00238289,80854.0,80853.0,0.67651733]
[1741893565996,8.9e-07,80854.0,80853.0,0.99605818]
[1741893566783,8.9e-07,80865.0,80864.0,0.564694]
[1741893566982,8.9e-07,80865.0,80864.0,0.82103584]
[1741893567234,0.4095,80898.0,80885.0,0.259627]
[1741893567447,0.0003382,80899.0,80892.0,0.559605]
[1741893567448,4e-07,80893.0,80892.0,0.559605]
[1741893567647,2.8e-07,80893.0,80892.0,0.82334684]
[1741893567852,0.000338,80900.0,80892.0,0.82334684]
[1741893567853,2e-07,80900.0,80899.0,0.396161]
[1741893568051,0.00012486,80900.0,80899.0,0.62710284]
[1741893568224,0.01924742,80904.0,80903.0,0.638369]
[1741893568407,0.01924742,80904.0,80903.0,0.92313084]
[1741893569556,0.0003382,80906.0,80905.0,0.57410385]
[1741893569881,0.0003382,80906.0,80905.0,0.69380484]
[1741893570077,0.01970244,80906.0,80905.0,0.69380484]
[1741893570415,4.4e-07,80906.0,80905.0,0.69880484]
[1741893570632,0.0003382,80918.0,80917.0,0.259524]
[1741893570811,0.0003382,80918.0,80917.0,0.37922499]
[1741893571935,0.0003382,80918.0,80917.0,0.38322499]
[1741893572316,0.0003382,80918.0,80917.0,0.53170499]
[1741893572741,0.0003382,80918.0,80917.0,0.53470499]
[1741893573410,0.0003382,80918.0,80917.0,0.53770499]
[1741893573694,0.0003382,80918.0,80917.0,0.53270499]
[1741893573924,0.0003382,80918.0,80917.0,0.52970499]
[1741893574077,0.0003382,80918.0,80917.0,0.53270499]
[1741893574295,0.0003382,80918.0,80917.0,0.53670499]
[1741893575153,0.0003382,80918.0,80917.0,0.38622499]
[1741893576688,0.259474,80933.0,80925.0,0.012357]
[1741893576896,0.00012459,80926.0,80925.0,0.012357]
[1741893577485,0.00012459,80926.0,80925.0,0.259499]
[1741893578087,0.00012459,80926.0,80925.0,0.260499]
[1741893579387,2.281e-05,80926.0,80925.0,0.001]
[1741893579599,0.01715136,80926.0,80925.0,0.001]
[1741893580447,0.01715136,80926.0,80925.0,0.003]
[1741893580572,0.04222458,80926.0,80925.0,0.002]
[1741893581024,0.04222458,80926.0,80906.0,0.2475366]
[1741893581025,0.247196,80908.0,80906.0,0.0003376]
[1741893581195,0.012358,80913.0,80907.0,0.012359]
[1741893581403,0.00473219,80912.0,80908.0,0.012359]
[1741893581602,0.00473219,80912.0,80909.0,0.012359]
[1741893581803,0.01936774,80912.0,80909.0,0.259547]
[1741893582018,0.01936774,80912.0,80911.0,0.259544]
[1741893583509,0.04422034,80912.0,80911.0,0.259544]
[1741893584247,0.01936774,80912.0,80911.0,0.261544]
[1741893585033,0.02540786,80917.0,80916.0,0.259527]
[1741893585591,0.40952281,80926.0,80916.0,0.259527]
[1741893585592,2.281e-05,80926.0,80925.0,0.259499]
[1741893586632,0.02446641,80926.0,80925.0,0.259499]
[1741893587918,0.02463521,80926.0,80925.0,0.259499]
[1741893588168,0.02463521,80926.0,80925.0,0.261499]
[1741893588400,0.04399893,80926.0,80925.0,0.262499]
[1741893588959,0.03789593,80926.0,80925.0,0.262499]
[1741893589184,0.03789593,80926.0,80925.0,0.003]
[1741893589556,0.04263699,80926.0,80925.0,0.003]
[1741893590093,0.04263699,80926.0,80925.0,0.002]
[1741893590282,0.04263699,80926.0,80922.0,0.259506]
[1741893590283,0.012357,80924.0,80918.0,0.012358]
[1741893590490,0.247162,80919.0,80914.0,0.247174]
[1741893590762,0.259519,80919.0,80913.0,0.247178]
[1741893590970,0.00474106,80918.0,80913.0,0.259536]
[1741893591118,0.00474106,80918.0,80917.0,0.247166]
[1741893591451,0.00474106,80918.0,80909.0,0.012359]
[1741893591645,0.00474106,80918.0,80915.0,0.012358]
[1741893591646,0.01936525,80918.0,80915.0,0.012358]
[1741893591851,0.00474106,80917.0,80916.0,0.259524]
[1741893592439,0.01936525,80918.0,80917.0,0.012358]
[1741893592642,0.00936525,80918.0,80917.0,0.012358]
[1741893592853,0.01410631,80918.0,80917.0,0.012358]
[1741893593024,0.00474106,80918.0,80917.0,0.012358]
[1741893593210,0.012357,80920.0,80915.0,0.259528]
[1741893593418,0.00474106,80919.0,80915.0,0.259528]
[1741893594078,0.00474106,80919.0,80917.0,0.001]
[1741893594274,0.26426106,80919.0,80917.0,0.001]
[1741893594449,0.25190306,80919.0,80917.0,0.001]
[1741893594660,0.00474106,80919.0,80915.0,0.012358]
[1741893594999,0.259511,80922.0,80916.0,0.247167]
[1741893595298,0.25187494,80921.0,80916.0,0.247167]
[1741893595511,0.012359,80912.0,80904.0,0.247204]
[1741893595800,0.012358,80914.0,80907.0,0.259553]
[1741893596004,0.247179,80913.0,80907.0,0.259553]
[1741893596151,0.07781192,80913.0,80907.0,0.259553]
[1741893596347,0.09717939,80913.0,80907.0,0.259553]
[1741893596607,0.02408641,80913.0,80910.0,0.247186]
[1741893596821,0.02408641,80913.0,80912.0,0.012359]
[1741893597179,0.02408641,80913.0,80911.0,0.247183]
[1741893597385,0.02408641,80913.0,80910.0,0.259545]
[1741893598051,0.02408641,80913.0,80912.0,0.001]
[1741893598223,0.02408641,80913.0,80910.0,0.259545]
[1741893598661,0.02408641,80913.0,80911.0,0.259542]
[1741893599217,0.02408641,80913.0,80912.0,0.012359]
[1741893600429,0.02408641,80913.0,80910.0,0.2598824]
[1741893600682,0.012359,80911.0,80910.0,0.0003374]
[1741893601065,0.01704744,80911.0,80910.0,0.0003374]
[1741893601209,0.00468844,80911.0,80910.0,0.0003374]
[1741893601432,0.04417652,80913.0,80910.0,0.0126964]
[1741893601633,0.00466462,80912.0,80910.0,0.0003374]
[1741893601838,0.00466462,80912.0,80911.0,0.002]
[1741893602335,0.00466462,80912.0,80910.0,0.0023374]
[1741893602547,0.00466462,80912.0,80910.0,0.2495254]
[1741893602726,0.25184862,80912.0,80910.0,0.0043374]
[1741893602927,0.26420762,80912.0,80910.0,0.0043374]
[1741893603228,0.00466462,80912.0,80910.0,0.0003374]
[1741893603429,0.26420762,80912.0,80911.0,0.002]
[1741893604422,0.00466462,80912.0,80911.0,0.002]
[1741893604840,0.01702362,80912.0,80911.0,0.002]
[1741893604982,0.00466462,80912.0,80911.0,0.002]
[1741893605179,0.01702362,80912.0,80911.0,0.002]
[1741893606063,0.01702362,80912.0,80911.0,0.004]
[1741893606265,0.32218485,80911.0,80910.0,1e-06]
[1741893606507,0.32218485,80911.0,80874.0,0.0491]
[1741893606508,0.012364,80878.0,80867.0,0.012365]
[1741893606708,0.2023307,80880.0,80874.0,0.25966]
[1741893606904,0.2023307,80880.0,80876.0,0.012364]
[1741893607111,0.2023307,80880.0,80878.0,0.012364]
[1741893607264,0.00454978,80879.0,80876.0,0.012364]
[1741893607614,0.00454978,80879.0,80878.0,0.012364]
[1741893607818,1.0953,80899.0,80887.0,0.012362]
[1741893608018,0.397578,80901.0,80887.0,0.012362]
[1741893608241,0.81418322,80888.0,80887.0,0.012362]
[1741893608460,0.02392086,80888.0,80887.0,0.17806299]
[1741893608670,0.02392086,80888.0,80887.0,0.17929906]
[1741893608890,0.01937262,80888.0,80887.0,0.17929906]
[1741893609047,0.01937262,80888.0,80887.0,0.17806299]
[1741893609252,0.01937262,80888.0,80887.0,0.18106299]
[1741893609669,0.012359,80908.0,80902.0,0.247211]
[1741893609879,0.785,80909.0,80908.0,0.259553]
[1741893610405,0.785,80909.0,80906.0,0.247197]
[1741893610537,0.785,80909.0,80906.0,0.259557]
[1741893610939,0.785,80909.0,80907.0,0.012359]
[1741893611268,0.785,80909.0,80908.0,0.261553]
[1741893611473,0.785,80909.0,80908.0,0.259553]
[1741893611819,0.81139553,80909.0,80906.0,0.00212459]
[1741893611933,0.259556,80907.0,80906.0,0.00012459]
[1741893612138,0.0483762,80907.0,80899.0,0.012361]
[1741893612341,0.259567,80904.0,80897.0,0.012361]
[1741893612543,0.1863772,80906.0,80888.0,0.247255]
[1741893612544,0.012361,80896.0,80888.0,0.247255]
[1741893612773,0.012362,80892.0,80887.0,0.00046226]
[1741893613193,0.25183713,80891.0,80887.0,0.00046226]
[1741893613493,0.25183713,80891.0,80890.0,0.259611]
[1741893613494,0.00459113,80891.0,80890.0,0.259611]
[1741893613698,0.012361,80897.0,80891.0,0.012362]
[1741893613908,0.012361,80897.0,80887.0,0.00046226]
[1741893613909,0.247252,80889.0,80887.0,0.00046226]
[1741893614133,0.012362,80890.0,80887.0,0.00546226]
[1741893614330,0.012363,80882.0,80872.0,0.012365]
[1741893614556,0.2023307,80882.0,80878.0,0.259649]
[1741893614711,0.00454924,80881.0,80878.0,0.259649]
[1741893614915,0.00454924,80881.0,80868.0,0.012365]
[1741893615291,0.4095,80887.0,80858.0,0.0784]
[1741893615292,0.20684815,80880.0,80878.0,0.012364]
[1741893615493,0.00451745,80880.0,80879.0,0.012364]
[1741893615842,0.00933327,80881.0,80880.0,0.259642]
[1741893616056,0.4095,80887.0,80886.0,0.259624]
[1741893616228,0.40962445,80890.0,80886.0,0.012363]
[1741893616631,0.247264,80886.0,80880.0,0.259642]
[1741893616778,0.012363,80881.0,80878.0,0.001]
[1741893616996,0.259645,80880.0,80878.0,0.001]
[1741893617187,0.012363,80882.0,80875.0,0.247295]
[1741893617567,0.259644,80880.0,80874.0,0.012364]
[1741893617791,0.012363,80881.0,80874.0,0.012364]
[1741893617993,0.012364,80878.0,80872.0,0.012365]
[1741893618195,0.012365,80869.0,80865.0,0.0797]
[1741893618398,0.012366,80865.0,80858.0,0.259711]
[1741893618606,0.247319,80867.0,80861.0,0.012366]
[1741893618762,0.012365,80869.0,80863.0,0.247331]
[1741893618991,0.259681,80868.0,80862.0,0.012366]
[1741893619192,0.012366,80863.0,80854.0,0.012367]
[1741893619428,0.2146967,80864.0,80858.0,0.259711]
[1741893619606,0.01937976,80861.0,80859.0,0.259711]
[1741893619827,0.01937976,80861.0,80843.0,0.012369]
[1741893619828,0.012368,80853.0,80843.0,0.012369]
[1741893620007,0.2023307,80860.0,80854.0,0.012367]
[1741893620241,0.4496717,80860.0,80854.0,0.012367]
[1741893620383,0.01937976,80861.0,80860.0,0.012367]
[1741893620583,0.012365,80868.0,80860.0,0.259708]
[1741893620860,0.012365,80868.0,80856.0,0.012367]
[1741893620861,0.247329,80864.0,80862.0,0.001]
[1741893620986,0.259695,80864.0,80862.0,0.001]